fUSD/lending_fUSD_20240129
["ID","MTS","AMOUNT","RATE_DAILY","PERIOD"]
[312979769,1706561469847,-500.0,0.00054246,120]
[312979770,1706561469858,-500.0,0.00054246,120]
[312979771,1706561469868,-948.4,0.00054246,120]
[312979772,1706561469878,-749.54,0.00054246,120]
[312979773,1706561469888,-1581.43,0.00054246,120]
[312979774,1706561469898,-2715.29,0.00054246,120]
[312979775,1706561469908,-500.0,0.00054246,120]
[312979776,1706561469926,-1018.31,0.00054246,120]
[312979777,1706561469936,-1796.24,0.00054246,120]
[312979778,1706561469964,-500.0,0.00054246,120]
[312979779,1706561469976,-500.0,0.00054246,120]
[312979780,1706561469988,-636.41,0.00054246,2]
[312979781,1706561469999,-670.5,0.00054246,120]
[312979782,1706561470010,-2496.34,0.00054246,120]
[312979783,1706561470022,-925.06,0.00054246,120]
[312979784,1706561470034,-500.0,0.00054246,120]
[312979785,1706561470046,-3323.72,0.00054246,120]
[312979786,1706561470060,-4642.25,0.00054246,120]
[312979787,1706561470071,-500.0,0.00054246,120]
[312979788,1706561470082,-821.87,0.00054246,120]
[312979789,1706561470093,-500.0,0.00054246,120]
[312979790,1706561470104,-910.37,0.00054246,120]
[312979791,1706561470114,-500.0,0.00054246,120]
[312979792,1706561470126,-500.0,0.00054246,120]
[312979793,1706561470137,-500.0,0.00054246,120]
[312979794,1706561470149,-1383.03,0.00054246,120]
[312979795,1706561470160,-1804.2,0.00054246,120]
[312979796,1706561470171,-1153.74,0.00054246,120]
[312979797,1706561470183,-500.0,0.00054246,120]
[312979798,1706561470197,-912.99,0.00054246,120]
[312979799,1706561470209,-6303.34,0.00054246,120]
[312979800,1706561470221,-1809.69,0.00054246,7]
[312979801,1706561470234,-500.0,0.00054246,120]
[312979802,1706561470245,-1137.49,0.00054246,120]
[312979803,1706561470257,-525.1,0.00054246,120]
[312979804,1706561470269,-500.0,0.00054246,120]
[312979805,1706561470280,-500.0,0.00054246,120]
[312979806,1706561470291,-897.67,0.00054246,120]
[312979807,1706561470301,-714.27,0.00054246,120]
[312979808,1706561470312,-1229.1,0.00054246,120]
[312979809,1706561470322,-2620.82,0.00054246,5]
[312979810,1706561470332,-500.0,0.00054246,120]
[312979811,1706561470342,-500.0,0.00054246,120]
[312979812,1706561470353,-1096.19,0.00054246,120]
[312979813,1706561470364,-500.0,0.00054246,120]
[312979814,1706561470375,-1643.14,0.00054246,120]
[312979815,1706561470386,-826.12,0.00054246,120]
[312979816,1706561470396,-500.0,0.00054246,120]
[312979817,1706561470407,-500.0,0.00054246,120]
[312979818,1706561470419,-968.31,0.00054246,120]
[312979819,1706561470429,-2224.65,0.00054246,120]
[312979820,1706561470440,-500.0,0.00054246,120]
[312979821,1706561470450,-1469.83,0.00054246,120]
[312979822,1706561470461,-900.23,0.00054246,120]
[312979823,1706561470471,-500.0,0.00054246,120]
[312979824,1706561470482,-1865.05,0.00054246,120]
[312979825,1706561470492,-4339.46,0.00054246,120]
[312979826,1706561470504,-517.92,0.00054246,120]
[312979827,1706561470514,-508.49,0.00054246,120]
[312979828,1706561470524,-3477.85,0.00054246,120]
[312979829,1706561470535,-529.09947411,0.00054246,120]
[312979830,1706561470546,-500.0,0.00054246,120]
[312979831,1706561470556,-500.0,0.00054246,120]
[312979832,1706561470566,-589.88,0.00054246,120]
[312979833,1706561470577,-218.4627646,0.00054246,120]
[312979834,1706561470587,-1173.01,0.00054246,120]
[312979835,1706561470597,-500.0,0.00054246,120]
[312979836,1706561470607,-850.07,0.00054246,120]
[312979837,1706561470618,-500.0,0.00054246,120]
[312979838,1706561470628,-4113.99,0.00054246,120]
[312979839,1706561470639,-790.48,0.00054246,120]
[312979840,1706561470650,-1441.85,0.00054246,120]
[312979841,1706561470662,-1205.31,0.00054246,120]
[312979842,1706561470672,-926.85,0.00054246,120]
[312979843,1706561470683,-867.01,0.00054246,120]
[312979844,1706561470863,-500.0,0.00054246,120]
[312979845,1706561470873,-573.37,0.00054246,120]
[312979846,1706561470883,-500.0,0.00054246,15]
[312979847,1706561470892,-500.0,0.00054246,120]
[312979848,1706561470902,-500.0,0.00054246,14]
[312979849,1706561470911,-828.34,0.00054246,120]
[312979850,1706561470921,-500.0,0.00054246,120]
[312979851,1706561470930,-500.0,0.00054246,120]
[312979852,1706561470939,-500.0,0.00054246,120]
[312979853,1706561470950,-500.0,0.00054246,120]
[312979854,1706561470959,-628.77,0.00054246,2]
[312979855,1706561470969,-500.0,0.00054246,120]
[312979856,1706561470978,-1106.95,0.00054246,120]
[312979857,1706561470988,-978.52,0.00054246,120]
[312979858,1706561470997,-2042.22,0.00054246,120]
[312979859,1706561471007,-500.0,0.00054246,120]
[312979860,1706561471017,-500.0,0.00054246,120]
[312979861,1706561471027,-500.0,0.00054246,120]
[312979862,1706561471037,-818.23,0.00054246,120]
[312979863,1706561471047,-500.0,0.00054246,120]
[312979864,1706561471056,-500.0,0.00054246,120]
[312979865,1706561471065,-500.0,0.00054246,120]
[312979866,1706561471075,-1710.59,0.00054246,120]
[312979867,1706561471084,-1423.27,0.00054246,120]
[312979868,1706561471093,-682.21,0.00054246,120]
[312979869,1706561471103,-500.0,0.00054246,120]
[312979870,1706561471112,-500.0,0.00054246,120]
[312979871,1706561471122,-500.0,0.00054246,120]
[312979872,1706561471132,-500.0,0.00054246,120]
[312979873,1706561471141,-500.0,0.00054246,120]
[312979874,1706561471151,-808.28,0.00054246,120]
[312979875,1706561471160,-6188.49,0.00054246,120]
[312979876,1706561471170,-8000.67,0.00054246,120]
[312979877,1706561471179,-500.0,0.00054246,120]
[312979878,1706561471189,-500.0,0.00054246,120]
[312979879,1706561471199,-794.53,0.00054246,120]
[312979880,1706561471210,-3628.8,0.00054246,120]
[312979881,1706561471220,-641.48,0.00054246,120]
[312979882,1706561471231,-500.0,0.00054246,120]
[312979883,1706561471240,-1143.82,0.00054246,120]
[312979884,1706561471250,-500.0,0.00054246,120]
[312979885,1706561471261,-1366.43,0.00054246,120]
[312979886,1706561471271,-2100.64,0.00054246,120]
[312979887,1706561471284,-500.0,0.00054246,120]
[312979888,1706561471294,-8061.28,0.00054246,120]
[312979889,1706561471305,-500.0,0.00054246,120]
[312979890,1706561471316,-684.15,0.00054246,120]
[312979891,1706561471326,-500.0,0.00054246,120]
[312979892,1706561471335,-500.0,0.00054246,120]
[312979893,1706561471345,-508.43,0.00054246,120]
[312979894,1706561471355,-500.0,0.00054246,120]
[312979895,1706561471365,-601.77,0.00054246,120]
[312979896,1706561471375,-1282.3,0.00054246,120]
[312979897,1706561471385,-1157.8,0.00054246,120]
[312979898,1706561471394,-901.62,0.00054246,120]
[312979899,1706561471404,-500.0,0.00054246,120]
[312979900,1706561471414,-807.23,0.00054246,120]
[312979901,1706561471423,-605.34,0.00054246,2]
[312979902,1706561471433,-1189.3,0.00054246,120]
[312979903,1706561471443,-1811.45,0.00054246,120]
[312979904,1706561471453,-1022.88,0.00054246,120]
[312979905,1706561471462,-500.0,0.00054246,120]
[312979906,1706561471472,-500.0,0.00054246,120]
[312979907,1706561471482,-804.97,0.00054246,120]
[312979908,1706561471492,-629.27,0.00054246,120]
[312979909,1706561471501,-3273.33,0.00054246,120]
[312979910,1706561471511,-500.0,0.00054246,120]
[312979911,1706561471521,-500.0,0.00054246,120]
[312979912,1706561471531,-1225.75,0.00054246,120]
[312979913,1706561471541,-793.45,0.00054246,120]
[312979914,1706561471550,-500.0,0.00054246,120]
[312979915,1706561471560,-500.0,0.00054246,120]
[312979916,1706561471569,-182.38842953,0.00054246,120]
[312979917,1706561471578,-500.0,0.00054246,120]
[312979918,1706561471588,-1464.2,0.00054246,120]
[312979919,1706561471598,-3764.69,0.00054246,5]
[312979920,1706561471608,-185.08311,0.0005428,69]
[312979921,1706561471617,-157.83769785,0.00054288,60]
[312979922,1706561471626,-150.0,0.0005429,120]
[312979923,1706561471636,-571.26842032,0.000543,50]
[312979924,1706561471645,-458.4,0.000543,7]
[312979925,1706561471655,-458.4,0.000543,7]
[312979926,1706561471666,-458.4,0.000543,7]
[312979927,1706561471675,-458.4,0.000543,7]
[312979928,1706561471685,-458.4,0.000543,7]
[312979929,1706561471694,-458.4,0.000543,7]
[312979930,1706561471704,-458.4,0.000543,7]
[312979931,1706561471726,-458.4,0.000543,7]
[312979932,1706561471735,-458.4,0.000543,7]
[312979933,1706561471746,-458.4,0.000543,7]
[312979934,1706561471755,-458.4,0.000543,7]
[312979935,1706561471765,-458.4,0.000543,7]
[312979936,1706561471775,-458.4,0.000543,7]
[312979937,1706561471785,-458.4,0.000543,7]
[312979938,1706561471795,-458.4,0.000543,7]
[312979939,1706561471804,-458.4,0.000543,7]
[312979940,1706561471814,-458.4,0.000543,7]
[312979941,1706561471823,-458.4,0.000543,7]
[312979942,1706561471833,-458.4,0.000543,7]
[312979943,1706561471844,-458.4,0.000543,7]
[312979944,1706561471853,-153.56,0.000543,7]
[312979945,1706561471864,-153.56,0.000543,7]
[312979946,1706561471872,-153.56,0.000543,7]
[312979947,1706561471883,-153.56,0.000543,7]
[312979948,1706561471892,-153.56,0.000543,7]
[312979949,1706561471902,-158.0,0.000543,120]
[312979950,1706561471911,-155.63519764,0.00054302,60]
[312979951,1706561471922,-153.29755698,0.00054309,60]
[312979952,1706561471932,-169.03608848,0.00054323,60]
[312979953,1706561471942,-1599.45098178,0.00054331,40]
[312979954,1706561471951,-154.67281811,0.00054333,60]
[312979955,1706561471961,-151.0129,0.00054348,56]
[312979956,1706561471971,-157.83769785,0.00054348,60]
[312979957,1706561471980,-157.47372315,0.00054348,60]
[312979958,1706561471990,-166.53972704,0.00054362,60]
[312979959,1706561471999,-2781.11471013,0.00054378,56]
[312979960,1706561472009,-158.93642252,0.00054379,60]
[312979961,1706561472018,-270.87705625,0.000544,30]
[312979962,1706561472027,-155.63519765,0.00054414,60]
[312979963,1706561472037,-500.0,0.00054415,120]
[312979964,1706561472046,-162.03829877,0.0005442,14]
[312979965,1706561472057,-564.94798829,0.0005442,53]
[312979966,1706561472067,-154.67281811,0.00054446,60]
[312979967,1706561472077,-150.0,0.00054456,120]
[312979968,1706561472087,-4550.0,0.00054463,7]
[312979969,1706561472097,-8853.478927,0.00054478,120]
[312979970,1706561472107,-151.0,0.00054478,30]
[312979971,1706561472118,-151.0,0.00054478,30]
[312979972,1706561472128,-151.0,0.00054478,30]
[312979973,1706561472139,-151.0,0.00054478,30]
[312979974,1706561472149,-151.0,0.00054478,30]
[312979975,1706561472160,-151.0,0.00054478,30]
[312979976,1706561472170,-151.0,0.00054478,30]
[312979977,1706561472181,-151.0,0.00054478,30]
[312979978,1706561472192,-151.0,0.00054478,30]
[312979979,1706561472202,-151.0,0.00054478,30]
[312979980,1706561472213,-151.0,0.00054478,30]
[312979981,1706561472222,-151.0,0.00054478,30]
[312979982,1706561472233,-151.0,0.00054478,30]
[312979983,1706561472243,-151.0,0.00054478,30]
[312979984,1706561472253,-151.0,0.00054478,30]
[312979985,1706561472262,-151.0,0.00054478,30]
[312979986,1706561472272,-151.0,0.00054478,30]
[312979987,1706561472283,-151.0,0.00054478,30]
[312979988,1706561472293,-151.0,0.00054478,30]
[312979989,1706561472303,-151.0,0.00054478,30]
[312979990,1706561472313,-151.0,0.00054478,30]
[312979991,1706561472323,-151.0,0.00054478,30]
[312979992,1706561472333,-206.281144,0.00054478,30]
[312979993,1706561472344,-151.0,0.00054478,14]
[312979994,1706561472354,-276.577304,0.00054478,14]
[312979995,1706561472365,-151.0,0.00054478,14]
[312979996,1706561472375,-157.47372315,0.00054481,60]
[312979997,1706561472384,-208.4340714,0.0005449,120]
[312979998,1706561472394,-192.0,0.0005449,2]
[312979999,1706561472405,-150.0,0.00054493,120]
[312980000,1706561472416,-150.0,0.00054493,120]
[312980001,1706561472426,-150.0,0.00054493,120]
[312980002,1706561472436,-150.0,0.00054493,120]
[312980003,1706561472446,-150.0,0.00054493,120]
[312980004,1706561472456,-150.0,0.00054493,120]
[312980005,1706561472466,-102184.24954204,0.00054495,30]
[312980006,1706561472476,-151.0129,0.00054498,59]
[312980007,1706561472485,-1000.0,0.000545,120]
[312980008,1706561472495,-4869.60919633,0.000545,120]
[312980009,1706561472504,-3500.51702526,0.000545,120]
[312980010,1706561472515,-500000.0,0.000545,120]
[312980011,1706561472525,-886.33,0.000545,19]
[312980012,1706561472535,-180.0,0.000545,2]
[312980013,1706561472544,-2521.0,0.000545,120]
[312980014,1706561472554,-2840.0,0.000545,120]
[312980015,1706561472564,-999.99999902,0.000545,30]
[312980016,1706561472574,-500.0,0.000545,6]
[312980017,1706561472583,-119261.74,0.000545,120]
[312980018,1706561472593,-1000.0,0.000545,120]
[312980019,1706561472603,-6937.68575384,0.0005451,32]
[312980020,1706561472613,-166.53972704,0.00054515,60]
[312980021,1706561472624,-2378.04552866,0.00054519,120]
[312980022,1706561472633,-230559.4398065,0.0005452,31]
[312980023,1706561472643,-504.4,0.0005452,120]
[312980024,1706561472652,-518.52,0.0005452,120]
[312980025,1706561472662,-158.0716867,0.0005452,120]
[312980026,1706561472671,-500.0,0.0005452,120]
[312980027,1706561472681,-329.0,0.0005452,120]
[312980028,1706561472691,-500.0,0.0005452,120]
[312980029,1706561472700,-304.35881168,0.0005452,120]
[312980030,1706561472710,-550.0,0.0005452,30]
[312980031,1706561472719,-352.86206878,0.0005452,120]
[312980032,1706561472729,-1337.94,0.0005452,120]
[312980033,1706561472738,-500.0,0.0005452,120]
[312980034,1706561472747,-500.0,0.0005452,2]
[312980035,1706561472757,-848.08,0.0005452,7]
[312980036,1706561472766,-1389.4,0.0005452,7]
[312980037,1706561472775,-1135.76,0.0005452,120]
[312980038,1706561472785,-500.0,0.0005452,7]
[312980039,1706561472795,-500.0,0.0005452,120]
[312980040,1706561472804,-500.0,0.0005452,120]
[312980041,1706561472814,-500.0,0.0005452,120]
[312980042,1706561472824,-1571.78,0.0005452,2]
[312980043,1706561472833,-500.0,0.0005452,120]
[312980044,1706561472843,-500.0,0.0005452,120]
[312980045,1706561472853,-500.0,0.0005452,120]
[312980046,1706561472863,-500.0,0.0005452,120]
[312980047,1706561472873,-736.08,0.0005452,120]
[312980048,1706561472882,-500.0,0.0005452,120]
[312980049,1706561472892,-545.66,0.0005452,120]
[312980050,1706561472902,-556.58,0.0005452,120]
[312980051,1706561472912,-500.0,0.0005452,120]
[312980052,1706561472922,-500.0,0.0005452,120]
[312980053,1706561472932,-500.0,0.0005452,120]
[312980054,1706561472942,-500.0,0.0005452,120]
[312980055,1706561472952,-580.98,0.0005452,120]
[312980056,1706561472961,-500.0,0.0005452,120]
[312980057,1706561472970,-3568.30700731,0.0005452,120]
[312980058,1706561472988,-762.13920058,0.0005452,120]
[312980059,1706561473000,-345.075,0.0005452,120]
[312980060,1706561473227,-531.21878969,0.00021899,2]
[312980061,1706561473236,-250.73,0.0003789,10]
[312980062,1706561473247,-150.68,0.00053,120]
[312980063,1706561473256,-150.68,0.00053,120]
[312980064,1706561473265,-150.68,0.00053,120]
[312980065,1706561473276,-150.68,0.00053,120]
[312980066,1706561473285,-150.68,0.00053,120]
[312980067,1706561473295,-150.68,0.00053,120]
[312980068,1706561473304,-150.68,0.00053,120]
[312980069,1706561473313,-150.68,0.00053,120]
[312980070,1706561473323,-150.68,0.00053,120]
[312980071,1706561473332,-150.68,0.00053,120]
[312980072,1706561473341,-150.68,0.00053,120]
[312980073,1706561473351,-1425.72879211,0.0005452,120]
[312980074,1706561473360,-500.0,0.0005452,120]
[312980075,1706561473369,-500.0,0.0005452,120]
[312980076,1706561473378,-500.0,0.0005452,120]
[312980077,1706561473387,-912.84,0.0005452,120]
[312980078,1706561473397,-151.0,0.0005452,14]
[312980079,1706561473408,-1015.38,0.0005452,120]
[312980080,1706561473419,-500.0,0.0005452,2]
[312980081,1706561473428,-500.0,0.0005452,2]
[312980082,1706561473437,-1481.63,0.0005452,120]
[312980083,1706561473446,-635.59,0.0005452,120]
[312980084,1706561473456,-500.0,0.0005452,120]
[312980085,1706561473465,-546.29,0.0005452,120]
[312980086,1706561473475,-760.0,0.0005452,120]
[312980087,1706561473484,-657.66,0.0005452,120]
[312980088,1706561473493,-523.24,0.0005452,120]
[312980089,1706561473502,-500.0,0.0005452,120]
[312980090,1706561473511,-500.0,0.0005452,120]
[312980091,1706561473521,-1280.35,0.0005452,120]
[312980092,1706561473531,-797.69,0.0005452,120]
[312980093,1706561473540,-500.0,0.0005452,120]
[312980094,1706561473550,-500.0,0.0005452,120]
[312980095,1706561473559,-948.4,0.0005452,120]
[312980096,1706561473569,-749.54,0.0005452,120]
[312980097,1706561473578,-1581.43,0.0005452,120]
[312980098,1706561473587,-2715.29,0.0005452,120]
[312980099,1706561473597,-500.0,0.0005452,120]
[312980100,1706561473607,-1018.31,0.0005452,120]
[312980101,1706561473616,-1796.24,0.0005452,120]
[312980102,1706561473625,-385.83212342,0.0005452,120]
[312980103,1706561473638,-114.16787658,0.0005452,120]
[312980104,1706561473647,-500.0,0.0005452,120]
[312980105,1706561473657,-636.41,0.0005452,2]
[312980106,1706561473667,-670.5,0.0005452,120]
[312980107,1706561473676,-2496.34,0.0005452,120]
[312980108,1706561473685,-925.06,0.0005452,120]
[312980109,1706561473695,-500.0,0.0005452,120]
[312980110,1706561473705,-3323.72,0.0005452,120]
[312980111,1706561473715,-1620.52521845,0.0005452,120]
[312980112,1706561473730,-150.68,0.00053,120]
[312980113,1706561473739,-2954.66353201,0.0005452,120]
[312980114,1706561473751,-67.06124954,0.0005452,120]
[312980115,1706561473761,-338.3779764,0.0005452,120]
[312980116,1706561475070,-150.68,0.00053,120]
[312980117,1706561475080,-161.6220236,0.0005452,120]
[312980118,1706561475091,-821.87,0.0005452,120]
[312980119,1706561475100,-500.0,0.0005452,120]
[312980120,1706561475109,-910.37,0.0005452,120]
[312980121,1706561475119,-500.0,0.0005452,120]
[312980122,1706561475129,-195.94483903,0.0005452,120]
[312980123,1706561475139,-500.0,0.0005452,120]
[312980124,1706561475150,-1383.03,0.0005452,120]
[312980125,1706561475159,-735.45436297,0.0005452,120]
[312980128,1706561562399,500.0,0.000222,8]
[312980129,1706561564505,1000.0,0.000223,8]
[312980130,1706561566597,1500.0,0.000224,8]
[312980132,1706561568704,2100.0,0.000225,8]
[312980133,1706561570790,2600.0,0.000226,8]
[312980134,1706561572926,500.0,0.000227,8]
[312980135,1706561575038,500.0,0.000228,8]
[312980136,1706561577146,500.0,0.000229,8]
[312980137,1706561620337,307.50222846,0.0002739,30]
[312980140,1706561647513,1500.0,0.0002,2]
[312980141,1706561665211,186.86130578,0.00021798,5]
[312980142,1706561714858,247.42374992,0.00021579,2]
[312980143,1706561715009,600.0,0.000218,7]
[312980144,1706561715928,157.64331235,0.00021579,2]
[312980145,1706561717115,1200.0,0.000219,7]
[312980146,1706561719238,1900.0,0.000223,8]
[312980147,1706561721319,2500.0,0.000224,8]
[312980148,1706561723562,3200.0,0.000225,8]
[312980149,1706561725904,600.0,0.000226,8]
[312980150,1706561728105,3727.53835644,0.00021797,4]
[312980151,1706561728746,600.0,0.000227,8]
[312980152,1706561730698,600.0,0.000228,8]
[312980153,1706561732815,600.0,0.000229,8]
[312980154,1706561758519,372.2,0.0001947,2]
[312980155,1706561778989,1279.99,0.00021311,2]
[312980156,1706561822385,150.0,0.0002169,2]
[312980157,1706561827602,677.3483605,0.0002169,2]
[312980158,1706561828287,2626.12525419,0.0002169,2]
[312980159,1706561828914,4359.42927597,0.0002169,2]
[312980160,1706561837558,489.299569,0.0002169,2]
[312980161,1706561838671,517.85038684,0.0002169,2]
[312980162,1706561840632,231.06592319,0.0002169,2]
[312980163,1706561840930,171.81003933,0.0002169,2]
[312980164,1706561842538,4282.43045022,0.0002169,2]
[312980165,1706561847228,162.13905461,0.0002169,2]
[312980166,1706561853288,206.3669,0.00021599,2]
[312980167,1706561857264,1366.63685076,0.0002169,2]
[312980168,1706561859905,196.0145,0.00021599,2]
[312980169,1706561889197,181.12,0.00021193,2]
[312980170,1706561913619,155.0,0.0002169,2]
[312980171,1706561921015,419.05803649,0.0002169,2]
[312980172,1706561923093,231.06592319,0.0002169,2]
[312980173,1706561929593,1047.62,0.00021465,2]
[312980174,1706561931259,178.22959207,0.00021599,2]
[312980175,1706561938099,2259.05430876,0.0002169,2]
[312980176,1706561945574,1052.4692,0.00021599,2]
[312980177,1706561952139,5436.0,0.0002169,2]
[312980178,1706561953314,251.7004,0.00021599,2]
[312980179,1706561965112,2259.05430876,0.0002169,2]
[312980180,1706561970550,503.84,0.00021244,2]
[312980181,1706561986827,155.0,0.0002169,2]
[312980182,1706561993274,258.16152368,0.00021697,3]
[312980183,1706561993308,486.6682,0.00021599,2]
[312980184,1706561996230,1389.1805,0.00021599,2]
[312980185,1706561999586,15291.42,0.00021243,2]
[312980186,1706562000499,492.147,0.00021599,2]
[312980187,1706562002311,150.0,0.0002169,2]
[312980188,1706562017383,284.14277166,0.00021591,2]
[312980189,1706562022361,284.1427715,0.00021601,2]
[312980190,1706562024426,353.15680646,0.00021597,2]
[312980191,1706562026356,353.15680645,0.00021641,2]
[312980192,1706562026773,165.94,0.0002113,2]
[312980193,1706562027284,2500.0,0.00021599,2]
[312980194,1706562027447,284.1427715,0.0002161,2]
[312980195,1706562028417,353.15680645,0.00021685,2]
[312980196,1706562032371,284.1427715,0.0002162,2]
[312980197,1706562032563,387.40869718,0.00021686,2]
[312980198,1706562037790,284.1427715,0.00021629,2]
[312980199,1706562041765,891.27,0.00020991,2]
[312980200,1706562042413,284.1427715,0.00021639,2]
[312980201,1706562044585,1280.86800367,0.00021599,2]
[312980202,1706562047353,284.1427715,0.00021648,2]
[312980203,1706562051950,299.99,0.000217,7]
[312980204,1706562052331,284.1427715,0.00021658,2]
[312980205,1706562057375,284.1427715,0.00021667,2]
[312980206,1706562061193,169.40558037,0.00021597,2]
[312980207,1706562062333,284.1427715,0.00021677,2]
[312980208,1706562066587,170.40860362,0.000215,2]
[312980209,1706562067355,284.1427715,0.00021686,2]
[312980210,1706562081437,358.36,0.00020954,2]
[312980211,1706562127090,4627.9433,0.00021598,2]
[312980212,1706562133563,172.10768244,0.00021697,3]
[312980213,1706562143261,441.62,0.00020955,2]
[312980214,1706562143501,441.62,0.00021013,2]
[312980215,1706562143706,441.62,0.0002107,2]
[312980216,1706562143913,441.62,0.00021128,2]
[312980217,1706562144173,441.62,0.00021185,2]
[312980218,1706562144390,441.62,0.00021243,2]
[312980219,1706562144619,441.62,0.000213,2]
[312980220,1706562144816,441.62,0.00021358,2]
[312980221,1706562145021,441.62,0.00021415,2]
[312980222,1706562145095,9760.7759,0.00021596,2]
[312980223,1706562145249,441.62,0.00021473,2]
[312980224,1706562145612,441.62,0.0002153,2]
[312980225,1706562145832,441.62,0.00021587,2]
[312980226,1706562146053,441.62,0.00021645,2]
[312980227,1706562147978,1246.31,0.00020799,2]
[312980228,1706562151212,9114.9374,0.00021596,2]
[312980229,1706562179177,697.87,0.0002169,2]
[312980230,1706562182673,801179.2097,0.00021596,2]
[312980231,1706562189275,250.0,0.00020768,2]
[312980232,1706562193137,2868.02773746,0.00021596,2]
[312980233,1706562200417,251.7004,0.00021596,2]
[312980234,1706562202327,11577.09231071,0.00021596,2]
[312980235,1706562203472,150.0,0.00020763,2]
[312980236,1706562225900,1884.80459892,0.00021634,2]
[312980237,1706562231385,416.9307,0.00021596,2]
[312980238,1706562236817,258.96784601,0.00021672,2]
[312980239,1706562244841,853.91200244,0.00021615,2]
[312980240,1706562251501,3630.66984983,0.00021672,2]
[312980241,1706562257684,182.91550859,0.00021687,2]
[312980242,1706562263499,414.8091398,0.00021687,2]
[312980243,1706562271573,13110.8185,0.00021596,2]
[312980244,1706562272150,543.19810084,0.00021687,2]
[312980245,1706562272627,2259.05430876,0.0002169,2]
[312980246,1706562274980,172.10768244,0.00021687,3]
[312980247,1706562279986,2500.0,0.00021596,2]
[312980248,1706562282483,5636.75775859,0.00021687,2]
[312980249,1706562286346,2093.8555888,0.00021687,2]
[312980250,1706562317625,472.99,0.00018838,2]
[312980251,1706562317836,472.99,0.00021102,2]
[312980252,1706562337765,181.12,0.00020756,2]
[312980253,1706562342450,6726.1536,0.00021596,2]
[312980254,1706562349530,176.69,0.00020797,2]
[312980255,1706562350804,176.69,0.00021345,2]
[312980256,1706562361787,150.0,0.00021294,2]
[312980257,1706562379101,182.91550859,0.00021687,2]
[312980258,1706562405295,172.10768244,0.00021687,3]
[312980259,1706562406214,1256.53639928,0.00021687,2]
[312980260,1706562407553,362.13206722,0.00021687,2]
[312980261,1706562416609,1395.90372586,0.00021687,2]
[312980262,1706562417649,3757.83850572,0.00021687,2]
[312980263,1706562425133,176.57840324,0.00021596,2]
[312980264,1706562427190,176.57840322,0.00021636,2]
[312980265,1706562429147,176.57840322,0.00021677,2]
[312980266,1706562435224,65318.5153,0.00021596,2]
[312980267,1706562441810,2420.44656654,0.00021687,2]
[312980268,1706562445305,569.2746683,0.00021615,2]
[312980269,1706562482169,172.64523066,0.00021687,2]
[312980270,1706562514676,1277.437,0.00021596,2]
[312980271,1706562516627,628.19,0.00020751,2]
[312980272,1706562520532,3408.2929,0.00021596,2]
[312980273,1706562543093,241.42137814,0.00021643,2]